bitfinex/quotes_SOLUSD_20260120
["timestamp","ask_amount","ask_price","bid_price","bid_amount"]
[1768905034765,3.32664028,129.29,129.24,3.67766961]
[1768905034965,7.00430989,129.3,129.25,28.35455675]
[1768905035389,3.32664028,129.29,129.25,28.35455675]
[1768905035587,3.32664028,129.3,129.27,3.25874552]
[1768905036168,3.32664028,129.31,129.28,20.19874552]
[1768905036587,3.32664028,129.31,129.28,3.25874552]
[1768905036888,3.32664028,129.3,129.27,3.25874552]
[1768905037098,3.32664028,129.33,129.28,3.25874552]
[1768905037267,3.32664028,129.33,129.29,20.19874552]
[1768905037467,3.32664028,129.33,129.3,6.93641513]
[1768905037687,3.32664028,129.34,129.31,3.25874552]
[1768905039068,3.32664028,129.34,129.31,6.93641513]
[1768905039797,3.32664028,129.34,129.32,16.94]
[1768905040092,3.32664028,129.35,129.32,20.19874552]
[1768905041871,3.32664028,129.35,129.32,3.25874552]
[1768905042076,3.32664028,129.34,129.32,16.94]
[1768905042792,3.32664028,129.33,129.32,16.94]
[1768905043485,3.32664028,129.33,129.3,16.94]
[1768905044292,3.32664028,129.33,129.3,20.20309732]
[1768905044878,3.1227412,129.33,129.3,20.20309732]
[1768905045813,3.1227412,129.33,129.31,16.94]
[1768905046988,3.33823508,129.32,129.31,16.94]
[1768905048183,3.33823508,129.33,129.31,16.94]
[1768905048383,3.33823508,129.33,129.3,3.26309732]
[1768905048583,3.33823508,129.33,129.31,16.94]
[1768905049803,1.33823508,129.33,129.31,16.94]
[1768905055999,1.33823508,129.33,129.3,6.94076693]
[1768905056305,1.33823508,129.33,129.31,16.94]
[1768905058008,3.61722595,129.35,129.31,24.29368423]
[1768905058310,3.61722595,129.35,129.32,16.94]
[1768905058490,3.61722595,129.35,129.31,7.35368423]
[1768905058689,3.61722595,129.35,129.32,16.94]
[1768905060102,3.61722595,129.35,129.33,16.94]
[1768905061006,3.61722595,129.35,129.31,7.35368423]
[1768905061196,3.61722595,129.35,129.32,16.94]
[1768905061611,3.61722595,129.35,129.32,20.61579008]
[1768905061795,3.61722595,129.35,129.32,3.67579008]
[1768905062012,3.61722595,129.35,129.33,16.94]
[1768905063617,3.61722595,129.34,129.3,3.67579008]
[1768905063820,3.61722595,129.34,129.32,16.94]
[1768905064312,3.61722595,129.34,129.31,16.94]
[1768905064719,3.61722595,129.34,129.31,20.61579008]
[1768905067631,3.61722595,129.33,129.29,3.67579008]
[1768905067822,3.61722595,129.32,129.3,16.94]
[1768905069434,3.61722595,129.33,129.3,20.61579008]
[1768905069734,3.61722595,129.34,129.31,3.67579008]
[1768905070735,3.61722595,129.34,129.3,20.61579008]
[1768905071146,3.61722595,129.34,129.31,16.94]
[1768905071320,3.61722595,129.33,129.31,16.94]
[1768905072216,3.61722595,129.33,129.3,20.61579008]
[1768905072435,3.61722595,129.33,129.3,3.67579008]
[1768905072674,3.61722595,129.33,129.3,20.61579008]
[1768905073558,3.61722595,129.33,129.3,3.67579008]
[1768905073755,3.61722595,129.33,129.3,20.61579008]
[1768905074353,3.61722595,129.33,129.27,3.67789415]
[1768905074354,3.61722595,129.32,129.27,3.67789415]
[1768905074659,3.61722595,129.32,129.29,16.94]
[1768905076663,3.61722595,129.31,129.28,20.61579008]
[1768905078142,3.61722595,129.31,129.28,16.94]
[1768905079156,3.61722595,129.31,129.28,20.61579008]
[1768905079859,3.61722595,129.3,129.28,16.94]
[1768905080260,3.61722595,129.3,129.27,16.94]
[1768905080561,3.61722595,129.31,129.28,3.67579008]
[1768905081264,3.61722595,129.31,129.28,20.61579008]
[1768905081469,3.61722595,129.31,129.28,3.67579008]
[1768905081676,3.61722595,129.31,129.28,20.61579008]
[1768905081850,3.61722595,129.31,129.28,3.67579008]
[1768905082045,3.61722595,129.31,129.28,20.61579008]
[1768905083482,3.61722595,129.31,129.28,24.29368423]
[1768905084168,3.61722595,129.31,129.28,20.61579008]
[1768905084493,4.103021,129.32,129.29,3.76229843]
[1768905085185,4.103021,129.29,129.23,3.76229843]
[1768905085397,4.103021,129.28,129.25,3.76229843]
[1768905086573,116.77448367,129.33,129.22,19.34595236]
[1768905086574,4.103021,129.25,129.22,16.94]
[1768905086888,4.103021,129.24,129.19,3.76229843]
[1768905087068,4.103021,129.24,129.21,3.76229843]
[1768905091075,4.103021,129.24,129.2,20.70229843]
[1768905092095,4.103021,129.24,129.21,3.76229843]
[1768905094668,4.103021,129.24,129.2,20.70229843]
[1768905095878,4.103021,129.23,129.2,20.70229843]
[1768905096182,4.04302099,129.23,129.2,20.70229843]
[1768905096787,4.04302099,129.23,129.2,20.72229843]
[1768905097296,3.98302099,129.23,129.2,20.72229843]
[1768905098797,3.92302099,129.23,129.2,20.72229843]
[1768905099008,3.92302099,129.23,129.2,16.96]
[1768905099208,3.92302099,129.23,129.21,3.76229843]
[1768905100118,3.92302099,129.23,129.2,20.72229843]
[1768905101196,3.92302099,129.23,129.2,3.76229843]
[1768905101396,3.92302099,129.23,129.2,20.72229843]
[1768905101602,3.92302099,129.23,129.21,3.76229843]
[1768905101910,3.92302099,129.23,129.2,20.72229843]
[1768905103092,3.92302099,129.23,129.2,16.96]
[1768905103292,3.92302099,129.23,129.21,3.76229843]
[1768905103900,4.01563379,129.25,129.22,4.13524687]
[1768905104107,4.01563379,129.25,129.22,7.81314102]
[1768905104810,4.01563379,129.25,129.22,4.13524687]
[1768905106608,4.01563379,129.25,129.21,7.81314102]
[1768905114018,4.01563379,129.25,129.22,4.12017008]
[1768905114219,4.01563379,129.25,129.22,7.79806423]
[1768905115615,4.01563379,129.25,129.22,4.12017008]
[1768905120214,4.27010358,129.29,129.25,4.12017008]
[1768905120415,4.27010358,129.29,129.27,4.12017008]
[1768905123503,4.27010358,129.29,129.26,24.7629]
[1768905124009,4.27010358,129.27,129.23,7.8029]
[1768905124207,4.27010358,129.27,129.24,16.96]
[1768905124409,4.27010358,129.27,129.24,24.7629]
[1768905128125,4.27010358,129.27,129.24,21.08017008]
[1768905128431,4.27010358,129.27,129.24,24.7629]
[1768905130824,4.27010358,129.27,129.24,21.08017008]
[1768905131124,4.27010358,129.27,129.24,24.7629]
[1768905133442,4.27010358,129.27,129.24,21.08017008]
[1768905134141,4.27010358,129.27,129.24,24.7629]
[1768905136335,4.27010358,129.27,129.24,4.12017008]
[1768905136531,4.27010358,129.27,129.24,24.7629]
[1768905140643,4.27010358,129.27,129.24,16.96]
[1768905140818,4.27010358,129.24,129.2,4.12017008]
[1768905141021,4.27010358,129.24,129.21,21.08017008]
[1768905141520,4.27010358,129.24,129.19,7.8029]
[1768905141726,4.27010358,129.23,129.2,21.08017008]
[1768905144046,4.27010358,129.23,129.21,4.35212859]
[1768905144447,4.1292052,129.25,129.22,4.35212859]
[1768905144829,4.1292052,129.29,129.25,4.35212859]
[1768905145142,4.1292052,129.29,129.26,4.35212859]
[1768905146228,4.1292052,129.29,129.26,24.99485851]
[1768905146630,4.1292052,129.28,129.23,4.35212859]
[1768905146944,4.1292052,129.27,129.23,24.99485851]
[1768905147327,4.1292052,129.27,129.24,8.03485851]
[1768905148833,4.1292052,129.27,129.24,4.35212859]
[1768905149150,11.86499721,129.27,129.24,8.03485851]
[1768905149753,11.86499721,129.27,129.24,4.35212859]
[1768905150132,11.86499721,129.27,129.23,21.31212859]
[1768905150133,4.1292052,129.26,129.23,21.31212859]
[1768905150534,11.86564052,129.26,129.23,4.35212859]
[1768905150936,4.1292052,129.25,129.22,24.99485851]
[1768905151131,4.07798754,129.25,129.22,24.99485851]
[1768905151434,7.73643532,129.26,129.23,4.35212859]
[1768905152251,11.41878296,129.27,129.23,4.35212859]
[1768905152951,3.68272992,129.26,129.22,16.96]
[1768905153153,4.1292052,129.25,129.22,16.96]
[1768905153543,4.1292052,129.25,129.22,21.31212859]
[1768905154633,4.07072118,129.25,129.22,21.31212859]
[1768905157959,4.1292052,129.24,129.21,21.31212859]
[1768905158453,4.1292052,129.24,129.21,4.35212859]
[1768905158759,7.81193512,129.24,129.21,4.35212859]
[1768905159461,7.81193512,129.24,129.2,16.96]
[1768905159462,4.1292052,129.23,129.2,21.31212859]
[1768905160460,7.81193512,129.24,129.21,4.35212859]
[1768905160960,15.54988496,129.24,129.21,4.35212859]
[1768905161156,4.1292052,129.23,129.21,4.35212859]
[1768905161356,4.06920519,129.23,129.21,4.35212859]
[1768905161861,11.42067976,129.24,129.21,4.35212859]
[1768905162162,3.68272992,129.24,129.21,4.35212859]
[1768905163264,15.6573669,129.24,129.21,4.35212859]
[1768905164363,11.97463698,129.24,129.21,4.35212859]
[1768905164562,15.6573669,129.24,129.21,4.35212859]
[1768905166666,11.97463698,129.24,129.21,4.35212859]
[1768905166839,15.6573669,129.24,129.21,4.35212859]
[1768905167863,4.23676884,129.23,129.2,21.15917369]
[1768905168069,4.23676884,129.23,129.2,24.84190361]
[1768905168565,4.17676883,129.23,129.2,24.84190361]
[1768905168767,4.17676883,129.23,129.21,4.19917369]
[1768905168946,11.41999609,129.25,129.21,4.19917369]
[1768905169147,99.83601876,129.27,129.23,4.19917369]
[1768905169348,95.78272992,129.27,129.23,4.19917369]
[1768905170475,4.23676884,129.26,129.23,4.19917369]
[1768905172182,4.23676884,129.26,129.22,7.88190361]
[1768905172758,4.23676884,129.25,129.21,7.88190361]
[1768905172951,4.23676884,129.25,129.21,24.84190361]
[1768905173858,11.97372781,129.25,129.21,24.84190361]
[1768905174262,11.97372781,129.25,129.21,21.15917369]
[1768905174444,4.19424074,129.23,129.2,4.26265906]
[1768905174663,4.19424074,129.23,129.21,16.96]
[1768905174874,4.19424074,129.23,129.2,4.26265906]
[1768905177572,4.19424074,129.22,129.19,4.26265906]
[1768905177750,4.19424074,129.22,129.19,21.22265906]
[1768905177751,4.13424073,129.22,129.19,21.22265906]
[1768905181080,4.19424074,129.24,129.21,4.26265906]
[1768905181375,7.87854124,129.24,129.21,4.26265906]
[1768905182872,4.19424074,129.26,129.22,4.26265906]
[1768905183180,11.93067418,129.26,129.22,24.90695956]
[1768905183374,4.19424074,129.29,129.25,4.26265906]
[1768905183670,4.19424074,129.27,129.24,16.96]
[1768905184073,4.19424074,129.27,129.23,16.96]
[1768905184074,7.87854124,129.27,129.23,16.96]
[1768905184264,4.19424074,129.27,129.23,16.96]
[1768905184457,7.87854124,129.27,129.23,16.96]
[1768905185198,4.19424074,129.27,129.23,16.96]
[1768905185654,7.87854124,129.27,129.23,21.22265906]
[1768905186783,15.6143037,129.27,129.23,21.22265906]
[1768905186967,11.9300032,129.27,129.23,21.22265906]
[1768905187167,15.6143037,129.27,129.24,4.26265906]
[1768905188763,4.19424074,129.26,129.23,21.22265906]
[1768905190381,4.19424074,129.26,129.24,4.26265906]
[1768905191481,4.19424074,129.26,129.23,21.22265906]
[1768905194667,4.19424074,129.25,129.22,4.26265906]
[1768905194867,4.19424074,129.25,129.23,4.26265906]
[1768905197691,4.19424074,129.25,129.22,21.22265906]
[1768905198772,4.19424074,129.25,129.23,4.26265906]
[1768905199494,4.19424074,129.25,129.22,21.22265906]
[1768905199680,4.19424074,129.25,129.23,4.26265906]
[1768905201095,4.19424074,129.26,129.23,4.26265906]
[1768905203394,4.47709904,129.28,129.24,4.48302181]
[1768905203591,4.47709904,129.28,129.25,4.48302181]
[1768905203899,4.47709904,129.28,129.25,21.44302181]
[1768905204889,4.47709904,129.28,129.26,4.48302181]
[1768905205493,4.47709904,129.29,129.26,4.48302181]
[1768905205792,12.21114492,129.3,129.27,4.48302181]
[1768905205983,5.21492873,129.29,129.27,4.48302181]
[1768905206893,109.65338032,129.33,129.27,7.73564258]
[1768905207096,3.6843005,129.31,129.26,4.28689248]
[1768905207395,4.47709904,129.29,129.26,16.96]
[1768905207599,4.47709904,129.29,129.25,4.28689248]
[1768905208376,4.47709904,129.29,129.26,4.28689248]
[1768905213907,4.47709904,129.28,129.24,4.28689248]
[1768905214097,4.47709904,129.28,129.24,21.24689248]
[1768905215097,4.47709904,129.28,129.24,28.38183115]
[1768905215306,4.47709904,129.28,129.25,4.28689248]
[1768905217581,8.16139954,129.28,129.25,4.28689248]
[1768905217798,4.47709904,129.27,129.24,21.24689248]
[1768905218190,4.417099,129.27,129.24,21.24689248]
[1768905218588,4.417099,129.27,129.22,3.6843005]
[1768905218791,4.417099,129.27,129.23,21.30689252]
[1768905219201,4.417099,129.27,129.24,4.34689252]
[1768905220512,4.47709904,129.26,129.23,21.30689252]
[1768905221011,8.16139954,129.27,129.24,4.34689252]
[1768905222626,4.47709904,129.27,129.24,4.34689252]
[1768905228319,4.41709904,129.27,129.24,4.34689252]
[1768905241122,8.10139954,129.27,129.24,4.34689252]
[1768905241332,4.05391104,129.24,129.21,4.28515373]
[1768905241537,4.05391104,129.24,129.23,16.96]
[1768905242027,4.05391104,129.24,129.19,12.02551829]
[1768905242227,4.05391104,129.22,129.19,16.96]
[1768905242534,4.05391104,129.22,129.19,21.24515373]
[1768905243130,7.7386549,129.22,129.19,21.24515373]
[1768905243322,4.05391104,129.21,129.19,21.24515373]
[1768905243522,4.05391104,129.21,129.19,16.96]
[1768905243833,4.05391104,129.21,129.17,4.48515373]
[1768905244012,7.7386549,129.2,129.17,4.48515373]
[1768905245339,4.05391104,129.2,129.17,4.48515373]
[1768905247539,4.05391104,129.2,129.16,9.34336948]
[1768905248822,4.05391104,129.19,129.15,3.68474386]
[1768905249029,3.99391103,129.19,129.16,0.1817388]
[1768905250441,3.99391103,129.19,129.16,3.86648266]
[1768905251036,4.05391104,129.21,129.18,3.86648266]
[1768905251740,4.05391104,129.21,129.17,3.86648266]
[1768905252324,3.68474386,129.22,129.17,3.86648266]
[1768905252325,4.05391104,129.22,129.19,0.1817388]
[1768905252640,4.05391104,129.22,129.17,7.74135936]
[1768905252846,4.05391104,129.21,129.18,3.86648266]
[1768905255545,4.05391104,129.23,129.19,0.1817388]
[1768905255742,4.05391104,129.22,129.18,11.60759807]
[1768905255946,4.05391104,129.22,129.18,0.1817388]
[1768905255947,4.05391104,129.21,129.18,0.1817388]
[1768905256144,4.05391104,129.21,129.18,3.86648266]
[1768905256449,4.05391104,129.23,129.19,0.1817388]
[1768905256620,4.05391104,129.23,129.19,3.86648266]
[1768905257642,4.05391104,129.23,129.19,11.60690436]
[1768905258152,4.05391104,129.23,129.19,0.1817388]
[1768905258338,4.05391104,129.23,129.19,3.86648266]
[1768905260127,4.05391104,129.23,129.19,11.60692798]
[1768905261057,4.05391104,129.23,129.19,3.86648266]
[1768905264134,4.05391104,129.23,129.2,3.86648266]
[1768905265960,4.05391104,129.23,129.19,11.42499005]
[1768905266153,4.05391104,129.23,129.19,11.60672885]
[1768905266563,4.05391104,129.23,129.19,7.92198499]
[1768905266935,4.05391104,129.23,129.19,11.60672885]
[1768905268260,4.05391104,129.23,129.19,7.92198499]
[1768905268459,4.05391104,129.23,129.19,11.60672885]
[1768905269754,4.05391104,129.23,129.19,7.92198499]
[1768905269934,4.05391104,129.23,129.19,11.60672885]
[1768905271238,4.05391104,129.23,129.19,7.92198499]
[1768905271433,4.05391104,129.23,129.19,11.60672885]
[1768905273263,4.05391104,129.23,129.2,3.68474386]
[1768905275464,4.05391104,129.23,129.19,7.92198499]
[1768905275763,4.05391104,129.23,129.2,3.68474386]
[1768905277563,4.05391104,129.23,129.19,0.1817388]
[1768905277760,4.05391104,129.23,129.2,3.68474386]
[1768905278065,4.05391104,129.23,129.2,3.65474387]
[1768905282854,4.05391104,129.23,129.19,0.1817388]
[1768905283174,4.16121063,129.22,129.19,3.86648266]
[1768905283857,4.16121063,129.22,129.19,0.1817388]
[1768905284057,4.16121063,129.22,129.19,3.86648266]
[1768905284460,4.16121063,129.22,129.19,0.1817388]
[1768905284647,4.16121063,129.22,129.19,3.86648266]
[1768905290155,4.16121063,129.22,129.19,0.1817388]
[1768905290374,4.16121063,129.22,129.19,3.86648266]
[1768905292678,4.16121063,129.22,129.19,0.1817388]
[1768905292881,4.16121063,129.22,129.19,3.86648266]
[1768905296387,4.16121063,129.22,129.19,3.68474386]
[1768905299590,4.16121063,129.22,129.18,3.86648266]
[1768905300798,4.16121063,129.22,129.19,0.1817388]
[1768905303502,4.16121063,129.22,129.18,3.86600506]
[1768905304097,4.16121063,129.22,129.19,0.1817388]
[1768905304268,4.16121063,129.22,129.18,3.68426626]
[1768905304667,4.16121063,129.22,129.18,3.86600506]
[1768905305476,4.25893052,129.21,129.18,0.1817388]
[1768905305676,4.25893052,129.21,129.18,3.86600506]
[1768905306596,7.73877185,129.22,129.15,16.96]
[1768905306597,4.25893052,129.24,129.2,3.86600506]
[1768905306772,4.25893052,129.22,129.2,3.68426626]
[1768905306972,4.25893052,129.22,129.19,3.86600506]
[1768905307800,4.25893052,129.21,129.17,3.68426626]
[1768905307996,4.25893052,129.2,129.16,3.68426626]
[1768905308294,4.25893052,129.19,129.16,3.86600506]
[1768905311498,4.25893052,129.19,129.16,0.1817388]
[1768905311698,4.25893052,129.19,129.16,3.86600506]
[1768905311885,4.25893052,129.19,129.16,0.1817388]
[1768905312086,4.25893052,129.19,129.16,3.86600506]
[1768905312292,4.25893052,129.19,129.16,3.68426626]
[1768905312492,4.25893052,129.19,129.15,7.74287135]
[1768905312688,4.25893052,129.19,129.16,0.1817388]
[1768905314209,4.25893052,129.19,129.16,3.86600506]
[1768905314584,4.25893052,129.19,129.17,3.68426626]
[1768905315701,4.25893052,129.2,129.17,3.86600506]
[1768905315915,4.25893052,129.21,129.19,3.68426626]
[1768905316503,4.25893052,129.22,129.19,3.86600506]
[1768905316980,4.25893052,129.22,129.19,3.68426626]
[1768905318389,4.25893052,129.22,129.18,3.86600506]
[1768905322817,7.94319678,129.22,129.18,3.86600506]
[1768905322989,4.25893052,129.21,129.18,3.68426626]
[1768905326313,4.25893052,129.21,129.18,3.86600506]
[1768905335011,4.46774391,129.23,129.2,3.86600506]
[1768905335216,4.46774391,129.23,129.2,3.68426626]
[1768905336319,4.46774391,129.23,129.2,0.1817388]
[1768905336518,4.46774391,129.23,129.21,3.68426626]
[1768905336705,16.96,129.25,129.21,3.68426626]
[1768905337720,24.69697649,129.25,129.21,3.68426626]
[1768905338802,4.46774391,129.24,129.21,7.83981184]
[1768905338993,16.96,129.25,129.22,7.83981184]
[1768905338994,4.46774391,129.25,129.22,7.83981184]
[1768905339197,4.46774391,129.25,129.21,7.83981184]
[1768905340508,4.46774391,129.25,129.21,4.15554558]
[1768905340725,4.46774391,129.25,129.21,7.83981184]
[1768905342223,4.46774391,129.24,129.21,7.83981184]
[1768905346126,4.46774391,129.24,129.21,4.15554558]
[1768905346313,4.46774391,129.24,129.21,7.83981184]
[1768905347519,4.46774391,129.24,129.21,4.15554558]
[1768905347723,4.46774391,129.24,129.21,7.83981184]
[1768905349910,4.46774391,129.24,129.21,4.15554558]
[1768905350229,4.46774391,129.24,129.21,7.83981184]
[1768905350425,4.46774391,129.24,129.21,4.15554558]
[1768905350625,4.35842481,129.22,129.17,4.17151881]
[1768905350929,4.35842481,129.22,129.19,3.68426626]
[1768905351229,4.35842481,129.22,129.19,7.85578507]
[1768905359040,4.35842481,129.22,129.18,4.05533649]
[1768905359240,4.35842481,129.22,129.19,7.73960275]
[1768905360138,4.35842481,129.22,129.19,4.05533649]
[1768905360341,4.35842481,129.22,129.19,7.73960275]
[1768905360727,4.35842481,129.22,129.2,3.68426626]
[1768905361327,4.3023875,129.23,129.2,7.73960275]
[1768905362539,111.44048954,129.27,129.23,4.05533649]
[1768905362863,4.3023875,129.26,129.24,3.68426626]
[1768905363029,4.3023875,129.26,129.24,3.68129142]
[1768905364635,4.3023875,129.27,129.25,3.68129142]
[1768905365540,4.3023875,129.27,129.24,4.05533649]
[1768905365744,4.3023875,129.27,129.24,3.68129142]
[1768905367024,4.3023875,129.27,129.23,3.68129142]
[1768905367224,4.3023875,129.26,129.23,3.68129142]
[1768905367950,4.3023875,129.27,129.25,3.68129142]
[1768905369361,4.3023875,129.27,129.26,3.68129142]
[1768905370048,16.96,129.29,129.25,4.05533649]
[1768905370253,4.3023875,129.28,129.26,3.68129142]
[1768905375768,4.3023875,129.28,129.24,4.05533649]
[1768905375969,4.3023875,129.28,129.25,3.68129142]
[1768905376968,4.3023875,129.28,129.24,4.05533649]
[1768905377170,4.3023875,129.28,129.25,3.68129142]
[1768905377666,4.3023875,129.28,129.25,7.73662791]
[1768905378970,4.3023875,129.28,129.26,3.68129142]
[1768905381675,4.3023875,129.28,129.26,3.65129142]
[1768905381856,4.3023875,129.28,129.25,4.05533649]
[1768905382061,4.3023875,129.28,129.25,7.73662791]
[1768905382454,4.3023875,129.26,129.21,11.79434076]
[1768905382659,4.3023875,129.26,129.22,7.73662791]
[1768905383070,4.3023875,129.25,129.22,4.05533649]
[1768905387072,4.3023875,129.25,129.2,19.34906888]
[1768905387073,4.16135123,129.24,129.2,4.11257933]
[1768905387251,4.16135123,129.23,129.2,4.11257933]
[1768905387873,4.16135123,129.22,129.19,4.11257933]
[1768905389379,4.10135124,129.22,129.19,4.11257933]
[1768905393281,7.78264266,129.22,129.19,4.11257933]
[1768905393463,4.10135124,129.22,129.19,4.11257933]
[1768905396169,4.04135125,129.22,129.19,4.11257933]
[1768905398383,16.96,129.25,129.16,4.11257933]
[1768905398384,4.16135123,129.2,129.16,4.11257933]
[1768905398689,4.10135124,129.2,129.16,4.11257933]
[1768905399076,3.68129142,129.19,129.15,4.11257933]
[1768905400577,7.84264265,129.19,129.15,4.11257933]
[1768905400912,7.84264265,129.19,129.16,4.11257933]
[1768905401400,4.16135123,129.19,129.16,4.11257933]
[1768905404091,4.16135123,129.19,129.15,4.0088334]
[1768905405395,4.16135123,129.19,129.16,4.0088334]
[1768905406393,21.32637693,129.22,129.18,4.0088334]
[1768905406713,21.32637693,129.22,129.19,4.0088334]
[1768905406996,4.36637693,129.21,129.19,4.0088334]
[1768905407208,8.04766835,129.21,129.18,4.0088334]
[1768905407393,4.36637693,129.2,129.18,4.0088334]
[1768905407601,4.36637693,129.2,129.17,4.0088334]
[1768905416499,4.36637693,129.2,129.17,11.75050832]
[1768905418294,4.30637694,129.2,129.17,11.75050832]
[1768905419919,4.30637694,129.2,129.17,4.0088334]
[1768905421329,3.68129142,129.2,129.16,3.92184269]
[1768905421499,3.98141273,129.19,129.15,11.66470912]
[1768905422043,3.98141273,129.18,129.15,11.66470912]
[1768905422210,3.92141274,129.18,129.15,11.66470912]
[1768905422941,3.68756038,129.17,129.14,0.2]
[1768905423237,3.68756038,129.18,129.14,0.2]
[1768905424225,7.66897311,129.16,129.14,0.2]
[1768905424428,3.98141273,129.16,129.14,0.2]
[1768905426432,3.98141273,129.16,129.14,4.12184269]
[1768905426734,3.98141273,129.16,129.14,0.2]
[1768905431744,3.92141274,129.16,129.14,0.2]
[1768905433325,3.68756038,129.16,129.13,0.2]
[1768905433818,7.66897311,129.16,129.13,0.2]
[1768905434223,7.66897311,129.16,129.13,4.12184269]
[1768905437142,3.98141273,129.16,129.13,11.86595416]
[1768905438729,3.98141273,129.16,129.13,4.12184269]
[1768905442351,3.98141273,129.16,129.13,11.86581226]
[1768905442550,3.98141273,129.18,129.15,3.92184269]
[1768905443551,3.98141273,129.18,129.14,7.88332584]
[1768905444140,3.98141273,129.18,129.14,4.19576546]
[1768905444541,3.98141273,129.18,129.14,15.62681219]
[1768905445147,3.98141273,129.18,129.14,11.43104673]
[1768905445349,3.98141273,129.18,129.14,15.62681219]
[1768905445953,3.98141273,129.18,129.15,4.19576546]
[1768905446749,3.98141273,129.18,129.14,11.43104673]
[1768905447052,3.98141273,129.18,129.14,4.19576546]
[1768905447253,7.66897311,129.18,129.14,4.19576546]
[1768905447554,4.23818504,129.17,129.14,4.19576546]
[1768905448257,4.23818504,129.16,129.13,0.2]
[1768905448426,4.23818504,129.16,129.13,7.94406882]
[1768905448826,4.23818504,129.16,129.13,12.13983428]
[1768905449951,4.23818504,129.16,129.13,4.39576546]
[1768905449952,7.92574542,129.16,129.13,4.39576546]
[1768905451243,4.23818504,129.16,129.13,4.39576546]
[1768905455663,7.92574542,129.16,129.13,0.2]
[1768905455863,4.23818504,129.13,129.12,0.2]
[1768905456064,4.178185,129.13,129.12,0.2]
[1768905458960,4.23818504,129.14,129.12,0.2]
[1768905463677,4.25704187,129.15,129.12,4.28298574]
[1768905464876,4.25704187,129.14,129.12,4.28298574]
[1768905465051,4.25704187,129.14,129.12,0.2]
[1768905466952,4.25704187,129.13,129.12,0.2]
[1768905467151,4.19704186,129.13,129.12,0.2]
[1768905469870,4.25704187,129.12,129.08,0.2]
[1768905470052,4.25704187,129.11,129.08,4.28298574]
[1768905470251,21.21704187,129.13,129.09,7.77054612]
[1768905470508,28.96123633,129.13,129.1,4.08298574]
[1768905470774,4.25704187,129.12,129.09,4.08298574]
[1768905478089,4.25704187,129.12,129.08,7.91972805]
[1768905478266,4.25704187,129.12,129.09,4.03216767]
[1768905481078,4.25704187,129.12,129.08,0.2]
[1768905481280,3.97842316,129.11,129.08,4.23216767]
[1768905482187,3.97842316,129.11,129.08,7.91972805]
[1768905482680,3.97842316,129.11,129.08,4.23216767]
[1768905483078,3.97842316,129.11,129.08,0.2]
[1768905483384,3.97842316,129.09,129.07,0.2]
[1768905483580,3.97842316,129.08,129.07,0.2]
[1768905483773,3.91842312,129.08,129.07,0.2]
[1768905484472,3.91842312,129.08,129.06,0.2]
[1768905484865,7.61102358,129.08,129.06,0.2]
[1768905486300,3.97842316,129.07,129.06,0.2]
[1768905486487,3.91842315,129.07,129.06,0.2]
[1768905486689,3.69260046,129.07,129.05,0.2]
[1768905487191,7.74674298,129.09,129.05,0.2]
[1768905487499,3.69260046,129.08,129.05,0.2]
[1768905488000,3.63260045,129.08,129.05,0.2]
[1768905488389,3.97842316,129.07,129.05,0.2]
[1768905488571,3.91842315,129.07,129.05,0.2]
[1768905489709,3.69260046,129.07,129.05,0.2]
[1768905490201,7.74724736,129.08,129.05,0.2]
[1768905490505,7.67102362,129.07,129.05,0.2]
[1768905491494,3.97842316,129.07,129.05,0.2]
[1768905492007,3.97842316,129.07,129.05,4.23216767]
[1768905492207,3.97842316,129.07,129.05,0.2]
[1768905493310,3.97842316,129.09,129.05,4.23216767]
[1768905493605,3.97842316,129.08,129.05,4.23216767]
[1768905494899,3.97842316,129.07,129.05,4.23216767]
[1768905500008,3.97842316,129.08,129.05,4.23216767]
[1768905500304,3.97842316,129.1,129.07,4.03216767]
[1768905500495,3.97842316,129.1,129.07,3.69260046]
[1768905500801,3.97842316,129.11,129.08,4.03216767]
[1768905501003,3.97842316,129.11,129.08,7.72476813]
[1768905501202,3.97842316,129.12,129.09,3.69260046]
[1768905501408,3.97842316,129.16,129.11,7.72476813]
[1768905501594,3.97842316,129.14,129.11,7.72476813]
[1768905501796,3.97842316,129.14,129.11,4.03216767]
[1768905502708,7.67102362,129.14,129.11,4.03216767]
[1768905502912,3.97842316,129.14,129.11,4.03216767]
[1768905506897,11.72200779,129.14,129.11,4.03216767]
[1768905507411,11.66110515,129.14,129.11,4.03216767]
[1768905507912,15.35370561,129.14,129.11,4.03216767]
[1768905508214,3.91752052,129.12,129.08,7.85996946]
[1768905508387,3.91752052,129.11,129.07,7.85996946]
[1768905509097,3.91752052,129.12,129.09,4.167369]
[1768905509304,3.91752052,129.12,129.08,7.85996946]
[1768905509903,3.69260046,129.14,129.09,3.69260046]
[1768905510100,3.91752052,129.13,129.1,7.85996946]
[1768905510906,3.91752052,129.13,129.1,4.167369]
[1768905518523,3.91752052,129.12,129.1,4.167369]